Cogmind - Beta 16.1 @@@ ROGUE MODE // 2026.04.20 @ 20:40:55 Player: RadicalRoss Result: Destroyed by L-31 Rogue with Katana Performance ------------- Evolutions (1) 500 Regions Visited (3) 600 Robots Destroyed (23) 115 Value Destroyed (712) 712 Prototype IDs (0) 0 Alien Tech Used (0) 0 Bonus (0) 0 TOTAL SCORE: 1927 Bonus ------- None Cogmind --------- Core Integrity 0/400 Matter 215/300 Energy 100/100 System Corruption 0% Temperature Cool (0) Movement Core (850) Ox16 Location -9/Storage Parts ------- > --- POWER (1) -------- (None) > --- PROPULSION (2) --- (None) > --- UTILITY (3) ------ High-capacity Storage Unit Visual Processing Unit Improved Propulsion Shielding > --- WEAPON (3) ------- Heavy Assault Rifle Improved Light Cannon > --- INVENTORY (20) --- Light Treads Aluminum Leg Aluminum Leg Compact Wheel Hover Unit Large Storage Unit Core Shielding Light Armor Plating Shield Generator Shield Generator Minigun Minigun Peak State ------------ > --- POWER ------------ Light Ion Engine > --- PROPULSION ------- Light Treads Light Treads > --- UTILITY ---------- High-capacity Storage Unit Visual Processing Unit Light Armor Plating > --- WEAPON ----------- Particle Gun Minigun Minigun > --- INVENTORY -------- Aluminum Leg Aluminum Leg Compact Wheel Hover Unit Hover Unit Hover Unit Large Storage Unit Improved Propulsion Shielding Light Armor Plating Shield Generator Minigun Minigun Improved Light Cannon [Rating: 17] Favorites ----------- Power Light Ion Engine Engine Light Ion Engine Propulsion Light Treads Treads Light Treads Leg Aluminum Leg Wheel Compact Wheel Hover Unit Hover Unit Utility Sensor Array Device Sensor Array Storage Large Storage Unit Processor Visual Processing Unit Protection Light Armor Plating Weapon Minigun Energy Gun Particle Gun Ballistic Gun Minigun Ballistic Cannon Improved Light Cannon Launcher Grenade Launcher Build | -11 -10 -9 -9 ------- Run | Yrd Mat Mat Sto Slots Evolved 2 | . . 2 . Power . | . . . . Propulsion . | . . . . Utility 1 | . . 1 . Weapon 1 | . . 1 . Parts Attached 31 | 6 6 4 15 Power 3 | 1 1 . 1 Engine 3 | 1 1 . 1 Core . | . . . . Reactor . | . . . . Propulsion 8 | 2 2 . 4 Treads 2 | . . . 2 Leg 2 | . 2 . . Wheel 2 | 2 . . . Hover 2 | . . . 2 Flight . | . . . . Utility 8 | 1 2 1 4 Device 1 | . 1 . . Storage 3 | 1 1 . 1 Processor 2 | . . 1 1 Hackware . | . . . . Protection 2 | . . . 2 Artifact . | . . . . Weapon 12 | 2 1 3 6 Energy Gun 1 | . . . 1 Energy Cannon . | . . . . Ballistic Gun 8 | 2 . 3 3 Ballistic Cannon 2 | . . . 2 Launcher 1 | . 1 . . Special Weapon . | . . . . Impact Weapon . | . . . . Slashing Weapon . | . . . . Piercing Weapon . | . . . . Special Melee Weapon . | . . . . Unidentified Prototypes . | . . . . Parts Lost 14 | . 2 1 11 Power 3 | . 1 . 2 Propulsion 5 | . 1 . 4 Utility 2 | . . . 2 Weapon 4 | . . 1 3 Highest Loss Streak 4 | . 2 1 4 To Critical Strikes . | . . . . Average Backups 11 | 3 10 10 12 Power . | . . . . Propulsion 5 | 1 6 6 5 Utility 2 | . 1 1 3 Weapon 2 | 1 1 3 3 Tool/Special . | . . . . Unused Backups 10 | . . . 10 Power . | . . . . Propulsion 4 | . . . 4 Utility 4 | . . . 4 Weapon 2 | . . . 2 Tool/Special . | . . . . Average Slot Usage (%) 93 | . 93 92 92 Engine 9 | . 11 11 7 Treads 7 | . . . 12 Leg 6 | . 3 22 4 Wheel 6 | . 22 . . Hover 2 | . . . 3 Device 8 | . 12 11 6 Storage 11 | . 14 11 11 Processor 7 | . . 8 11 Protection 2 | . . . 3 Energy Gun 1 | . . . 1 Ballistic Gun 21 | . 14 23 23 Ballistic Cannon 3 | . . . 6 Launcher 4 | . 13 5 . Peak Build Rating 17 | 6 8 16 17 Average Rating 12 | 3 7 11 15 On Entrance 7 | . 6 8 16 Avg Prop Armor Cover (%) . | . . . . Naked Turns . | . . . . Heaviest Build 57 | 14 31 33 57 Greatest Support 40 | 26 26 20 40 Greatest Overweight (x) 16 | . 1 1 16 Average Overweight (x) . | . . 1 1 Largest Inventory Capacity 20 | 8 15 15 20 Average Capacity 15 | 7 13 15 17 Most Carried 16 | 8 12 14 16 Average Carried 11 | 3 10 10 12 Final Capacity 20 | 8 15 15 20 Final Carried 14 | 6 10 14 12 Class Distribution -------------------- 38% | Mutant 23% | Skirmisher 19% | Gunner 18% | Tank Dominant Class ---------------- Mutant | -10/Materials Gunner | -9/Materials Skirmisher | -9/Storage Resources | -11 -10 -9 -9 ----------- Run | Yrd Mat Mat Sto Matter Collected 1011 | 225 85 81 620 Remotely . | . . . . Salvage Created 775 | . 140 81 554 Parts 45 | . 10 3 32 Haulers Intercepted . | . . . . Recyclers Shooed 1 | . 1 . . Parts Field Recycled . | . . . . Retrieved Matter . | . . . . Parts Self-Destructed . | . . . . Prevented . | . . . . Parts Restored . | . . . . Kills | -11 -10 -9 -9 ------- Run | Yrd Mat Mat Sto Combat Hostiles Destroyed 15 | . 4 . 11 Guns 9 | . . . 9 Cannons 2 | . . . 2 AOE 4 | . 4 . . Classes Destroyed 6 | . 3 1 2 Worker 2 | . 2 . . Builder 1 | . . . 1 Recycler 1 | . . 1 . Watcher 4 | . 2 . 2 Grunt 9 | . 4 . 5 Sentry 6 | . . . 6 Best Kill Streak 3 | . 3 1 3 Combat Bots Only 2 | . 2 . 2 Max Kills in Single Turn 2 | . 2 1 1 Gunslinging . | . . . . Exploded 2 | . 2 . . Melee . | . . . . Uniques/NPCs Destroyed . | . . . . Combat | -11 -10 -9 -9 -------- Run | Yrd Mat Mat Sto Hostile Shots Fired 165 | . 22 . 143 Missed 34 | . 7 . 27 Hits 131 | . 15 . 116 Melee 8 | . . . 8 Projectile 123 | . 15 . 108 Critical Strikes 10 | . 1 . 9 Damage Taken 2143 | . 313 24 1806 Core 519 | . 107 . 412 Absorbed by Shields . | . . . . Redirected to Shielding 58 | . . . 58 Core Remaining (%) 78 | 100 57 . . Volleys Fired 60 | . 11 2 47 Largest 3 | . 2 3 3 Hottest 131 | . 50 73 131 Shots Fired 154 | . 22 5 127 Gun 121 | . 11 4 106 Cannon 21 | . . . 21 Launcher 12 | . 11 1 . Special . | . . . . Kinetic 139 | . 11 4 124 Thermal 3 | . . . 3 Explosive 12 | . 11 1 . Electromagnetic . | . . . . Robot Hit Streak 21 | . 5 2 21 Robot Miss Streak 8 | . 3 3 8 Penetration Max . | . . . . Secondary Targets 3 | . . . 3 Max Gunslinging Chain 1 | . . . 1 Shots Hit Robots 100 | . 9 3 88 Core Hits 39 | . 11 2 26 Critical Kills . | . . . . Critical Parts Destroyed . | . . . . Critical Strikes 2 | . . . 2 Destroy 1 | . . . 1 Blast 1 | . . . 1 Melee Attacks . | . . . . Impact . | . . . . Slashing . | . . . . Piercing . | . . . . Sneak Attacks . | . . . . Combat Hostiles . | . . . . Follow-up Attacks . | . . . . Damage Inflicted 2255 | . 650 61 1544 Guns 1239 | . 49 23 1167 Cannons 346 | . . . 346 Explosions 634 | . 596 38 . Melee . | . . . . Ramming 36 | . 5 . 31 Kinetic 1541 | . 49 23 1469 Thermal 44 | . . . 44 Explosive 591 | . 553 38 . Electromagnetic 43 | . 43 . . Impact . | . . . . Slashing . | . . . . Piercing . | . . . . Highest Corruption 4 | . 4 . . Average Corruption 3 | . 3 . . Corruption Purged . | . . . . Corruption Blocked . | . . . . Effects 1 | . 1 . . Matter Fused 1 | . 1 . . Overload Shots . | . . . . Overflow Damage 16 | . 14 2 . Projectiles . | . . . . Explosions 16 | . 14 2 . Melee . | . . . . Knockbacks 2 | . . . 2 Impact . | . . . . Kinetic 2 | . . . 2 Secondary . | . . . . Self-Inflicted Damage 155 | . 131 24 . Shots 8 | . 7 1 . Rammed 5 | . 1 . 4 Targets Rammed 5 | . 1 . 4 Kicked . | . . . . Crushed . | . . . . Highest Temperature 165 | . 43 3 165 Average Temperature 36 | . 24 2 39 Received Heat Transfer 822 | . 126 . 696 Siege Activations . | . . . . Martial Activations . | . . . . Shielding Activations . | . . . . Robots Disrupted . | . . . . Combat Hostiles . | . . . . Robots Corrupted . | . . . . Combat Hostiles . | . . . . Parts Fried . | . . . . Impact Corruptions . | . . . . Robots Melted . | . . . . Combat Hostiles . | . . . . Parts Melted . | . . . . Heat Transferred 111 | . . . 111 Parts Sabotaged . | . . . . Parts Stolen . | . . . . Parts Stripped . | . . . . Power Chain Reactions . | . . . . Alert | -11 -10 -9 -9 ------- Run | Yrd Mat Mat Sto Maximum Alert Level . | . . . . Low Security (%) 100 | 100 100 100 100 Level 1 . | . . . . Level 2 . | . . . . Level 3 . | . . . . Level 4 . | . . . . Level 5 . | . . . . High Security . | . . . . Max Security . | . . . . Peak Influence 84 | . 84 14 77 Initial 14 | . . 14 . Average 22 | . 33 2 24 Influence Increases 563 | . 217 11 335 Destroy 0b10 Robot/C 300 | . 80 . 220 Destroy 0b10 Robot/NC 40 | . 20 5 15 Destroy Leader 108 | . 24 . 84 Disable Machine 30 | . 30 . . Destroy Structure 70 | . 63 6 1 Lose Combat Pursuer 15 | . . . 15 Influence Decreases 563 | . 183 45 335 Entered New Map 20 | . . 20 . Time Decay 450 | . 163 22 265 Lost Part 93 | . 20 3 70 Squads Dispatched 1 | . . . 1 Investigation . | . . . . Extermination . | . . . . Reinforcement 1 | . . . 1 Assault . | . . . . Garrison . | . . . . Intercept . | . . . . Searches Triggered . | . . . . Construction Impeded . | . . . . Haulers Reinforced . | . . . . Active Scanning Responses . | . . . . Cargo Convoy Interrupts . | . . . . Stealth | -11 -10 -9 -9 --------- Run | Yrd Mat Mat Sto Distress Signals 2 | . 1 . 1 Communications Jammed . | . . . . Distress Signals . | . . . . Times Spotted 24 | . 7 . 17 Peak Tracking Total 4 | . 3 . 4 Tactical Retreats 1 | . . . 1 Traps | -11 -10 -9 -9 ------- Run | Yrd Mat Mat Sto Traps Triggered 3 | . 2 . 1 Indirectly . | . . . . Trap Hack Attempts . | . . . . Triggered . | . . . . Disarmed . | . . . . Reprogrammed . | . . . . Reused . | . . . . Traps Extracted . | . . . . Installed . | . . . . Triggered . | . . . . Machines | -11 -10 -9 -9 ---------- Run | Yrd Mat Mat Sto Machines Disabled 2 | . 2 . . Max in Single Turn 2 | . 2 . . Machines Repaired . | . . . . Machines Dismantled . | . . . . Machines Sabotaged . | . . . . Overloaded Fab Kills . | . . . . Hacking | -11 -10 -9 -9 --------- Run | Yrd Mat Mat Sto Machines Accessed . | . . . . Terminals . | . . . . Fabricators . | . . . . Repair Stations . | . . . . Recycling Units . | . . . . Scanalyzers . | . . . . Garrison Access . | . . . . Total Hacks . | . . . . Successful . | . . . . Failed . | . . . . Catastrophic . | . . . . Database Lockouts . | . . . . Manual . | . . . . Terminals . | . . . . Fabricators . | . . . . Repair Stations . | . . . . Recycling Units . | . . . . Scanalyzers . | . . . . Garrison Access . | . . . . Terminal Hacks . | . . . . Fabricator Hacks . | . . . . Repair Station Hacks . | . . . . Recycling Unit Hacks . | . . . . Scanalyzer . | . . . . Garrison Access Hacks . | . . . . Unauthorized Hacks . | . . . . Terminals . | . . . . Fabricators . | . . . . Repair Stations . | . . . . Recycling Units . | . . . . Scanalyzers . | . . . . Garrison Access . | . . . . Data Cores Recovered . | . . . . Used . | . . . . Hacking Detections . | . . . . Full Trace Events . | . . . . Feedback Events . | . . . . Feedback Blocked . | . . . . Robot Schematics Acquired . | . . . . Robots Built . | . . . . Authchips . | . . . . Time . | . . . . Total Robot Build Rating . | . . . . Part Schematics Acquired . | . . . . Parts Built . | . . . . Authchips . | . . . . Time . | . . . . Total Part Build Rating . | . . . . Part Studies Acquired . | . . . . Parts Repaired . | . . . . Time . | . . . . Parts Recycled . | . . . . Recycled Matter . | . . . . Retrieved Matter . | . . . . Retrieved Components . | . . . . Parts Scanalyzed . | . . . . Part Schematics Acquired . | . . . . Parts Damaged . | . . . . Bothacking | -11 -10 -9 -9 ------------ Run | Yrd Mat Mat Sto Used RIF Installer . | . . . . Robots Hacked . | . . . . Non-combat . | . . . . Combat . | . . . . Robot Hacks Applied . | . . . . Relay Couplers Released . | . . . . Fabnet Peak Effective % . | . . . . Robots Rewired . | . . . . Allies Hacked . | . . . . Hacks Repelled . | . . . . Allies | -11 -10 -9 -9 -------- Run | Yrd Mat Mat Sto Total Allies . | . . . . Largest Group . | . . . . Highest-Rated Group . | . . . . Highest-Rated Ally . | . . . . Total Orders . | . . . . Ally Attacks . | . . . . Total Damage . | . . . . Kills . | . . . . Allies Corrupted . | . . . . Allies Melted . | . . . . Intel | -11 -10 -9 -9 ------- Run | Yrd Mat Mat Sto Active Infowar (turns) 1409 | . 357 203 849 Optics 668 | . . . 668 Sensors 1062 | . 357 203 502 Robot Analysis Total . | . . . . Derelict Logs Recovered . | . . . . Drone Launches . | . . . . Drone Recoveries . | . . . . Exploration | -11 -10 -9 -9 ------------- Run | Yrd Mat Mat Sto Turns Passed 1511 | 66 393 203 849 Spaces Moved 781 | 60 303 98 320 Core 15 | 14 . . 1 Treads 218 | . . . 218 Legs 184 | . 25 98 61 Wheels 324 | 46 278 . . Hover 40 | . . . 40 Flight . | . . . . Fastest Speed 50 | 50 90 190 160 Average Speed 158 | 80 109 190 210 Slowest Speed 850 | 90 190 190 850 Overloaded Moves . | . . . . Propulsion Burnouts . | . . . . Robots Hopped . | . . . . Potential Cave-ins . | . . . . Cave-ins Triggered . | . . . . Exploration Rate (%) 23 | 4 39 10 41 Regions Visited 3 Branch Regions 1 Pre-discovered Areas . | . . . . Known Exits Taken . | . . . . Unknown Exits Taken 3 | 1 1 1 . Scrap Searched . | . . . . Spaces Dug . | . . . . Terrain Destroyed 70 | . 64 6 . Melee . | . . . . Projectile . | . . . . AOE 70 | . 64 6 . Terrain Rammed . | . . . . Walls Destroyed . | . . . . Machines Disabled . | . . . . Actions | -11 -10 -9 -9 --------- Run | Yrd Mat Mat Sto Total 938 | 77 343 110 408 Wait 12 | . 12 . . Move 778 | 59 302 97 320 Hop . | . . . . Pick Up 41 | 12 8 7 14 Fast Attach . | . . . . Attach 20 | 6 3 3 8 Detach . | . . . . Swap 13 | . 4 1 8 Drop 9 | . 2 . 7 Fire 60 | . 11 2 47 Melee . | . . . . Ram 1 | . 1 . . Kick . | . . . . Crush 4 | . . . 4 Escape Stasis . | . . . . Rewire . | . . . . Trap . | . . . . Miscellaneous . | . . . . Route ------- -11/Scrapyard -10/Materials -9/Materials -9/Storage History --------- Turn | Location | Event 10 | -11/Scrapyard | Discovered new exit (range 16) 67 | -11/Scrapyard | Entered Materials 315 | -10/Materials | Build established: Mutant 431 | -10/Materials | Discovered new exit (range 11) 460 | -10/Materials | Entered another Materials area 460 | -9/Materials | Evolved 2 slots: Utility x1, Weapon x1 536 | -9/Materials | Discovered new exit (range 11) 663 | -9/Materials | Entered Storage 1131 | -9/Storage | Build established: Skirmisher 1342 | -9/Storage | Core integrity fell below 50% 1386 | -9/Storage | Lost 4 parts (1p1n1u1w) 1505 | -9/Storage | Core integrity fell below 20% 1512 | -9/Storage | Destroyed by L-31 Rogue with Katana Last Messages --------------- R-06 Scavenger collects Lgt. Armor Plating. Y-45 Defender destroyed. Particle Gun destroyed. Lgt. Ion Engine destroyed. Critical hit (Burn: +37). Lgt. Armor Plating destroyed. Y-45 Defender destroyed. Acquired 17 matter. Acquired 11 matter. Acquired 8 matter. Acquired 33 matter. Acquired 5 matter. Acquired 3 matter. K-01 Serf collects debris. Acquired Hvy. Assault Rifle. Hover Unit destroyed. L-31 Rogue knocked back. Imp. Light Cannon severed. R-06 Scavenger collects Imp. Light Cannon. Hover Unit destroyed. Map ----- +----------------------------------------------------+ | | | | | | | | | | | | | | | | | | | | | | | | | | | | | | | | | ?????????????????????????????????????????? | | ?????????????????????????????????????????? | | ?????????????????????????????????????????? | | ????????????#############????????????????? | | ????????????? %% ?????????????????? | | ??????????????# % ???????????????????? | | ??????????????? r ?????????????????????? | | ????????????????# #??????????????????????? | | ?????????????####l#####??????????????????? | | ?????????????# @ #??????????????????? | | ?????????????# #??????????????????? | | ?????????????#""" ###????????????????? | | ?????????????#""" ""#????????????????? | | ?????????????#""" Y"#????????????????? | | ?????????????#""" ""#????????????????? | | ?????????????#""" ###????????????????? | | ?????????????# #?????##???????????? | | ?????????????# #????""#??????###### | | ?????????+ ####+###+#####"Y"######?# | | ?????????# # ?#]] | | ?????????+ / """ """?????#[[ | | ?????????#####+##### # """ """?????# = | | ???????????????????# # """ """ ""??# | | ???????????????????# + # / | | ???????????????????# # ! # | | ??????????????????## #################/## | | ??????????????????# ##### ##### # | | ??????????????????# # | | ??????????????????# # | | ??????????????????# ##### ##### # | | ??????????????????######???######???## ### | | ?????????????????????????????????????# #?? | | ?????????????????????????????????????# #?? | | ?????????????########?????????????####+### | +----------------------------------------------------+ Best States ------------- Heat Dissipation 28 Energy Generation 10 Energy Capacity 250 Matter Stores 300 Matter Capacity 300 Sight Range 18 Robot Scan Range 14 Terrain Scan Density 10 Armor Coverage 150 Propulsion Shielding 66 Evasion (%) 42 Targeting Accuracy 5 Recoil Reduction 2 Item Schematics ----------------- None Robot Schematics ------------------ None Fabricated ------------ Nothing Repaired ---------- Nothing Studied --------- None Alien Tech Used ----------------- None Achievements -------------- Let's See Who's Tougher Challenges ------------ None Game ------ Seed DimensionalChipSpiker Manual? 0 Play Time 00:24:20 Cumulative 2.3 hours Start 2026.04.20 @ 20:15:37 End 2026.04.20 @ 20:40:55 Sessions 1 Manual Loads 0 Difficulty Rogue Special Mode None Game No. 5 Rogue 5 Adventurer 0 Explorer 0 Win Type - Total 0 Types 0/0/0/0/0/0/0/0/0/0 Lore% 0 Gallery% 5 Achievement% 5 Wizard Run 0 Options --------- Layout 1 ASCII 0 Keyboard 0 Movement Mouse Keybinds 0 Fullscreen 1 Font 32/Swanston Map View 50x35 Zoom Use 0% Tactical HUD 0 Map Filters NONE Filters NONE Steam 1 RUN: 440d1490-cca3-4138-96e4-791ed9223e3c